fUSD/lending_fUSD_20241111
["ID","MTS","AMOUNT","RATE_DAILY","PERIOD"]
[342020605,1731366638044,-500.0,0.00014075,2]
[342020606,1731366638054,-172.3,0.0001414,2]
[342020607,1731366638063,-563.0,0.00014195,2]
[342020608,1731366638073,-1000.0,0.00014293,2]
[342020609,1731366638082,-3000.0,0.000143,2]
[342020610,1731366638091,-1000.0,0.000143,2]
[342020611,1731366638101,-36107.43488115,0.0001436,2]
[342020612,1731366638110,-728.92,0.00014399,2]
[342020613,1731366638119,-844.861,0.00014399,2]
[342020614,1731366638128,-500.0,0.00014399,2]
[342020615,1731366638138,-500.0,0.00014399,2]
[342020616,1731366638148,-500.0,0.00014399,2]
[342020617,1731366638157,-516.2,0.00014399,2]
[342020618,1731366638167,-500.0,0.00014399,2]
[342020619,1731366638176,-500.0,0.00014399,2]
[342020620,1731366638186,-500.0,0.00014399,2]
[342020621,1731366638195,-100000.0,0.000144,2]
[342020622,1731366638204,-1445.829,0.000144,2]
[342020623,1731366638214,-1851.0899,0.000144,2]
[342020624,1731366638226,-1935.6968,0.000144,2]
[342020625,1731366638235,-6466.0422,0.000144,2]
[342020626,1731366638245,-213.53891616,0.000144,2]
[342020627,1731366638254,-168.22982697,0.000144,2]
[342020628,1731366638263,-164.33035333,0.000144,2]
[342020629,1731366638272,-2011.70247325,0.000144,2]
[342020630,1731366638281,-179.0897819,0.000144,2]
[342020631,1731366638290,-1000.0,0.000144,2]
[342020632,1731366638299,-189.59319346,0.00014438,2]
[342020633,1731366638308,-500.0,0.00014473,2]
[342020634,1731366638317,-500.0,0.00014473,2]
[342020636,1731366638326,-413.95305835,0.00014473,2]
[342020637,1731366638336,-500.0,0.00014473,2]
[342020639,1731366638345,-500.0,0.00014473,2]
[342020641,1731366638354,-500.0,0.00014473,2]
[342020643,1731366638363,-500.0,0.00014473,2]
[342020645,1731366638372,-460.30262154,0.00014473,2]
[342020647,1731366638381,-417.17734151,0.00014473,2]
[342020649,1731366638391,-215.62078579,0.0001449,2]
[342020651,1731366638400,-500.0,0.00014498,2]
[342020653,1731366638409,-728.92,0.00014499,2]
[342020655,1731366638419,-728.92,0.00014499,2]
[342020657,1731366638429,-728.92,0.00014499,2]
[342020659,1731366638438,-728.92,0.00014499,2]
[342020661,1731366638447,-728.92,0.00014499,2]
[342020663,1731366638457,-728.92,0.00014499,2]
[342020665,1731366638467,-728.92,0.00014499,2]
[342020667,1731366638483,-728.92,0.00014499,2]
[342020669,1731366638493,-728.92,0.00014499,2]
[342020671,1731366638502,-728.92,0.00014499,2]
[342020673,1731366638512,-500.0,0.00014499,2]
[342020675,1731366638522,-500.0,0.00014499,2]
[342020677,1731366638531,-500.0,0.00014499,2]
[342020679,1731366638540,-500.0,0.00014499,2]
[342020681,1731366638550,-500.0,0.00014499,2]
[342020683,1731366638559,-500.0,0.00014499,2]
[342020685,1731366638568,-277.69,0.00014499,2]
[342020687,1731366638578,-500.0,0.00014499,2]
[342020689,1731366638587,-500.0,0.00014499,2]
[342020691,1731366638597,-500.0,0.00014499,2]
[342020693,1731366638606,-500.0,0.00014499,2]
[342020695,1731366638616,-500.0,0.00014499,2]
[342020697,1731366638625,-500.0,0.00014499,2]
[342020699,1731366638634,-500.0,0.00014499,2]
[342020701,1731366638646,-500.0,0.00014499,2]
[342020703,1731366638655,-618.59,0.00014499,2]
[342020705,1731366638664,-500.0,0.00014499,2]
[342020707,1731366638674,-255.79,0.00014499,2]
[342020708,1731366638684,-644.74,0.00014499,2]
[342020710,1731366638694,-644.74,0.00014499,2]
[342020712,1731366638704,-644.74,0.00014499,2]
[342020714,1731366638713,-644.74,0.00014499,2]
[342020717,1731366638730,-644.74,0.00014499,2]
[342020719,1731366638740,-644.74,0.00014499,2]
[342020721,1731366638750,-644.74,0.00014499,2]
[342020723,1731366638760,-644.74,0.00014499,2]
[342020725,1731366638770,-644.74,0.00014499,2]
[342020727,1731366638780,-644.74,0.00014499,2]
[342020729,1731366638790,-644.74,0.00014499,2]
[342020731,1731366638799,-500.0,0.00014499,2]
[342020733,1731366638808,-500.0,0.00014499,2]
[342020735,1731366638817,-234.52260924,0.00014499,2]
[342020737,1731366638826,-500.46233713,0.00014499,2]
[342020738,1731366638835,-1125.0,0.00014499,2]
[342020740,1731366638844,-500.0,0.00014499,2]
[342020742,1731366638853,-500.0,0.00014499,2]
[342020744,1731366638863,-500.0,0.00014499,2]
[342020746,1731366638872,-500.0,0.00014499,2]
[342020748,1731366638881,-500.0,0.00014499,2]
[342020750,1731366638890,-500.0,0.00014499,2]
[342020751,1731366638899,-73085.2159425,0.000145,2]
[342020756,1731366638928,-245.4,0.00014499,2]
[342020758,1731366638938,-500.0,0.00014499,2]
[342020760,1731366638946,-620.71334518,0.000145,2]
[342020762,1731366638957,-2027.75224276,0.000145,2]
[342020764,1731366638969,-10056.29606246,0.000145,2]
[342020767,1731366638996,-297.08813028,0.000145,2]
[342020769,1731366639009,-393.01182328,0.000145,2]
[342020771,1731366639021,-2440.0,0.000145,2]
[342020774,1731366639032,-684.3000014,0.000145,2]
[342020776,1731366639043,-4473.06322101,0.000145,2]
[342020870,1731366639868,-347.74677251,0.00014499,2]
[342020872,1731366639877,-75.68680791,0.000145,2]
[342020882,1731366639962,-6525.20361555,0.000145,2]
[342020884,1731366639973,-3387.091209,0.000145,2]
[342020886,1731366639984,-18118.1556839,0.000145,2]
[342021293,1731366644053,-500.0,0.00013999,2]
[342021296,1731366644062,-448.29,0.00013999,2]
[342021298,1731366644071,-50249.73303363,0.000145,2]
[342021325,1731366644301,-2396.83829464,0.000145,2]
[342021327,1731366644313,-4057.80278244,0.000145,2]
[342021330,1731366644326,-4119.94588262,0.000145,2]
[342021351,1731366644530,-16192.49272998,0.000145,2]
[342021354,1731366644542,-175652.80466418,0.000145,2]
[342021356,1731366644554,-66824.1830628,0.000145,2]
[342021359,1731366644573,-1423.69919453,0.000145,2]
[342021361,1731366644584,-81155.36591897,0.000145,2]
[342021363,1731366644595,-71159.02257665,0.000145,2]
[342021365,1731366644606,-27398.5798375,0.000145,2]
[342021368,1731366644617,-1809.35138285,0.000145,2]
[342021370,1731366644629,-16647.22592975,0.000145,2]
[342021505,1731366645809,-500.0,0.00013999,2]
[342021509,1731366645821,-214.56,0.00013999,2]
[342021513,1731366645831,-6007.25795954,0.000145,2]
[342021518,1731366645844,-1505811.54379102,0.000145,2]
[342021521,1731366645853,-2000.0,0.000145,2]
[342021524,1731366645863,-200.0,0.000145,2]
[342021527,1731366645873,-168.22982695,0.000145,2]
[342021530,1731366645883,-168.22982695,0.000146,2]
[342021533,1731366645894,-1000.0,0.000146,2]
[342021536,1731366645905,-500.0,0.00014636,2]
[342021539,1731366645915,-958.4491651,0.00014645,2]
[342021542,1731366645924,-200.0,0.00014645,2]
[342021545,1731366645934,-2011.70247325,0.0001465,2]
[342021548,1731366645943,-266.01000026,0.000147,2]
[342021551,1731366645953,-168.22982695,0.000147,2]
[342021554,1731366645963,-1000.0,0.000147,2]
[342021557,1731366645976,-500.0,0.00014773,2]
[342021560,1731366645986,-172.3,0.00014782,2]
[342021562,1731366645996,-200.0,0.00014791,2]
[342021564,1731366646007,-168.22982695,0.000148,2]
[342021566,1731366646018,-1716.0,0.000148,2]
[342021568,1731366646028,-5220.045924,0.000149,2]
[342021569,1731366646039,-8611.509451,0.000149,2]
[342021570,1731366646050,-878.645529,0.000149,2]
[342021571,1731366646060,-3453.89198783,0.000149,2]
[342021572,1731366646070,-219.58873758,0.000149,2]
[342021573,1731366646081,-168.22982695,0.000149,2]
[342021574,1731366646091,-164.33035333,0.000149,2]
[342021576,1731366646101,-189.59319346,0.000149,2]
[342021578,1731366646111,-2011.70247325,0.000149,2]
[342021580,1731366646121,-500.0,0.0001491,2]
[342021582,1731366646131,-200.0,0.00014939,2]
[342021584,1731366646141,-382.47698181,0.00014973,2]
[342021586,1731366646151,-1471.2154902,0.00014989,2]
[342021588,1731366646162,-3232.9325325,0.00014989,2]
[342021590,1731366646172,-251.051699,0.00014989,2]
[342021592,1731366646183,-888.841398,0.00014989,2]
[342021593,1731366646193,-3827.5917105,0.00014989,2]
[342021595,1731366646204,-8396.3797402,0.00014989,2]
[342021597,1731366646214,-1223.2490233,0.0001499,2]
[342021599,1731366646226,-975.2825565,0.0001499,2]
[342021601,1731366646236,-727.3160896,0.0001499,2]
[342021603,1731366646247,-479.3496228,0.0001499,2]
[342021605,1731366646257,-231.383156,0.0001499,2]
[342021607,1731366646267,-2688.0369254,0.0001499,2]
[342021609,1731366646278,-2143.1413184,0.0001499,2]
[342021611,1731366646288,-1598.2457114,0.0001499,2]
[342021613,1731366646299,-1053.3501043,0.0001499,2]
[342021615,1731366646309,-508.4544973,0.0001499,2]
[342021617,1731366646319,-251.051699,0.0001499,2]
[342021619,1731366646331,-251.051699,0.0001499,2]
[342021621,1731366646341,-251.051699,0.0001499,2]
[342021623,1731366646351,-251.051699,0.0001499,2]
[342021625,1731366646362,-251.051699,0.0001499,2]
[342021627,1731366646372,-3182.4690896,0.0001499,2]
[342021629,1731366646382,-2537.3464687,0.0001499,2]
[342021631,1731366646393,-1892.2238478,0.0001499,2]
[342021633,1731366646404,-1247.1012269,0.0001499,2]
[342021635,1731366646414,-601.978606,0.0001499,2]
[342021637,1731366646424,-6981.209337,0.0001499,2]
[342021639,1731366646433,-5566.0389339,0.0001499,2]
[342021641,1731366646443,-4150.8685307,0.0001499,2]
[342021643,1731366646453,-2735.6981276,0.0001499,2]
[342021645,1731366646463,-1320.5277244,0.0001499,2]
[342021647,1731366646475,-2000.0,0.00014999,2]
[342021649,1731366646486,-1610.77405131,0.00014999,2]
[342021651,1731366646496,-322.8601,0.00014999,2]
[342021653,1731366646507,-728.92,0.00014999,2]
[342021655,1731366646518,-728.92,0.00014999,2]
[342021657,1731366646529,-728.92,0.00014999,2]
[342021659,1731366646539,-728.92,0.00014999,2]
[342021661,1731366646549,-728.92,0.00014999,2]
[342021663,1731366646559,-728.92,0.00014999,2]
[342021665,1731366646569,-728.92,0.00014999,2]
[342021667,1731366646579,-728.92,0.00014999,2]
[342021669,1731366646589,-728.92,0.00014999,2]
[342021671,1731366646600,-728.92,0.00014999,2]
[342021673,1731366646611,-728.92,0.00014999,2]
[342021675,1731366646621,-729.07,0.00014999,2]
[342021677,1731366646631,-644.74,0.00014999,2]
[342021679,1731366646641,-644.74,0.00014999,2]
[342021680,1731366646656,-644.74,0.00014999,2]
[342021683,1731366646666,-644.74,0.00014999,2]
[342021684,1731366646676,-644.74,0.00014999,2]
[342021686,1731366646687,-644.74,0.00014999,2]
[342021689,1731366646699,-644.74,0.00014999,2]
[342021690,1731366646709,-644.74,0.00014999,2]
[342021692,1731366646719,-644.74,0.00014999,2]
[342021694,1731366646732,-644.74,0.00014999,2]
[342021697,1731366646744,-644.74,0.00014999,2]
[342021699,1731366646753,-644.74,0.00014999,2]
[342021701,1731366646763,-644.86077702,0.00014999,2]
[342021702,1731366646773,-3660.0,0.00015,2]
[342021705,1731366646784,-278419.10921214,0.00015,2]
[342021708,1731366646810,-2900.03388331,0.000145,2]
[342021710,1731366646819,-3370.85393195,0.00015,2]
[342021712,1731366646831,-1519.65391501,0.00015,2]
[342021714,1731366646843,-1177.7791854,0.00015,2]
[342021717,1731366646855,-848.17224689,0.00015,2]
[342021719,1731366646867,-1270.29342928,0.00015,2]
[342021809,1731366647729,-386078.36332862,0.00015,2]
[342021812,1731366647743,-669403.58422631,0.00015,2]
[342021814,1731366647758,-1763.52,0.00015,2]
[342021816,1731366647769,-40537.01199376,0.00015,2]
[342021819,1731366647779,-3562.60499983,0.00015,2]
[342021821,1731366647790,-5632.05297035,0.00015,2]
[342021823,1731366647801,-4371.66041327,0.00015,2]
[342021825,1731366647815,-672.9137388,0.00015,2]
[342021828,1731366647827,-7508.16995979,0.00015,2]
[342021830,1731366647838,-5848.40729355,0.00015,2]
[342021832,1731366647849,-3950.7,0.00015,2]
[342024721,1731366820834,837.3,0.00011655,2]
[342024725,1731367204260,-250.0,0.00013319,2]
[342024726,1731367204287,-2750.0,0.00013424,2]
[342024727,1731367215233,-2718.77374204,0.00013424,2]
[342024728,1731367215258,-250.0,0.00013523,2]
[342024729,1731367215282,-31.22625796,0.00013578,2]
[342024730,1731367224813,-205.84374204,0.00013578,2]
[342024731,1731367224840,-150.0,0.00013699,2]
[342024732,1731367224867,-456.26,0.00013699,2]
[342024733,1731367224899,-432.28,0.00013735,2]
[342024734,1731367224924,-200.0,0.00013776,2]
[342024735,1731367224956,-1555.61625796,0.00013862,2]
[342024743,1731367622378,795.43,0.00011218,2]
[342024746,1731367709767,287.79,0.00010959,2]
[342024752,1731367721147,239.83,0.00010959,2]
[342024753,1731367721847,212.86377984,0.0001,2]
[342024755,1731367729579,255.15997513,0.000107,2]
[342024756,1731367731955,199.86,0.00010959,2]
[342024757,1731367732700,3037.0,0.00012311,2]
[342024764,1731367742619,166.55,0.00010959,2]
[342024765,1731367753191,832.76,0.00010959,2]
[342024777,1731367768125,-1392.440438,0.00012676,2]
[342024778,1731367768146,-1888.01,0.0001274,2]
[342024779,1731367768166,-225.87067029,0.0001285,2]
[342024780,1731367768188,-300.0,0.00012899,2]
[342024781,1731367768209,-400.0,0.000129,4]
[342024782,1731367768229,-1969.16,0.000129,2]
[342024783,1731367768249,-824.19427371,0.000129,2]
[342024784,1731367803305,150.0,0.00010959,2]
[342024785,1731367803503,150.0,0.00010959,2]
[342024786,1731367803742,150.0,0.00010959,2]
[342024787,1731367803929,150.0,0.00010959,2]
[342024788,1731367804144,249.12188809,0.00010959,2]
[342024810,1731367831917,-675.8753,0.0001264,2]
[342024811,1731367831926,-2091.49813712,0.000128,2]
[342024812,1731367831936,-300.0,0.00012899,2]
[342024813,1731367831946,-1849.26202629,0.000129,2]
[342024814,1731367831955,-309.63776092,0.000129,2]
[342024815,1731367831964,-273.8877,0.000129,2]
[342024816,1731367831978,-1616.6913,0.000129,2]
[342024817,1731367831992,-739.8335,0.000129,2]
[342024818,1731367832003,-546.57784,0.000129,2]
[342024819,1731367832014,-2037.2528,0.000129,2]
[342024820,1731367832025,-250.0,0.00012954,2]
[342024821,1731367832035,-310.53922716,0.0001299,2]
[342024822,1731367832046,-938.66430365,0.00012996,2]
[342024823,1731367832076,-509.56652697,0.00012996,2]
[342024824,1731367832089,-1532.00319301,0.00012996,2]
[342024825,1731367832099,-150.0,0.00012999,2]
[342024826,1731367832109,-951.35722101,0.00013,2]
[342024827,1731367832121,-35647.00976205,0.00013,2]
[342024828,1731367832158,-1200.0,0.00013,2]
[342024829,1731367832172,-3367.1173,0.00013,2]
[342024830,1731367832184,-46508.8759938,0.00013,2]
[342024831,1731367832195,-355422.3688747,0.00013,2]
[342024832,1731367832271,-872.65354587,0.00013,2]
[342024833,1731367832282,-1186.48373938,0.00013,2]
[342024877,1731367837995,-518496.58386107,0.00013,2]
[342024878,1731367838006,-275.6135153,0.00013,2]
[342024879,1731367838015,-1441.2,0.00013,2]
[342024880,1731367838024,-4147.27,0.00013,2]
[342024881,1731367838033,-4161.87,0.00013,2]
[342024882,1731367838042,-2291.97324716,0.00013066,2]
[342024883,1731367838055,-158.08342535,0.00013066,2]
[342024884,1731367838064,-237.07,0.00013166,2]
[342024885,1731367838073,-1127.77,0.00013174,2]
[342024886,1731367838083,-423.15,0.00013183,2]
[342024887,1731367838092,-23900.0,0.00013213,2]
[342024888,1731367838101,-274.29,0.00013238,2]
[342024889,1731367838111,-1888.01,0.00013243,2]
[342024890,1731367838137,-2291.97324708,0.0001327,2]
[342024891,1731367838147,-14492.62068092,0.0001338,2]
[342024892,1731367838156,-2291.97324708,0.00013474,2]
[342024893,1731367838165,-795.43,0.00013482,2]
[342024894,1731367838175,-185.11,0.00013493,2]
[342024895,1731367838184,-1000.0,0.00013535,2]
[342024896,1731367838193,-158.08342535,0.00013677,2]
[342024897,1731367838202,-2291.97324708,0.00013677,2]
[342024898,1731367838211,-500.0,0.00013698,2]
[342024899,1731367838220,-500.0,0.00013698,2]
[342024900,1731367838231,-500.0,0.00013698,2]
[342024901,1731367838240,-500.0,0.00013698,2]
[342024902,1731367838249,-500.0,0.00013698,2]
[342024903,1731367838258,-500.0,0.00013698,2]
[342024904,1731367838268,-500.0,0.00013698,2]
[342024905,1731367838277,-500.0,0.00013698,2]
[342024906,1731367838287,-500.0,0.00013698,2]
[342024907,1731367838296,-377.10984137,0.00013698,2]
[342024908,1731367838306,-500.0,0.00013698,2]
[342024911,1731367838567,-500.0,0.00013698,2]
[342024912,1731367838578,-500.0,0.00013698,2]
[342024913,1731367838588,-500.0,0.00013698,2]
[342024914,1731367838598,-500.0,0.00013698,2]
[342024915,1731367838608,-500.0,0.00013698,2]
[342024916,1731367838617,-500.0,0.00013698,2]
[342024917,1731367838626,-500.0,0.00013698,2]
[342024918,1731367838635,-500.0,0.00013698,2]
[342024919,1731367838644,-500.0,0.00013698,2]
[342024920,1731367838653,-500.0,0.00013698,2]
[342024921,1731367838662,-500.0,0.00013698,2]
[342024922,1731367838671,-500.0,0.00013698,2]
[342024923,1731367838681,-500.0,0.00013698,2]
[342024924,1731367838690,-500.0,0.00013698,2]
[342024925,1731367838699,-500.0,0.00013698,2]
[342024926,1731367838709,-558.19155163,0.00013698,2]
[342024927,1731367838718,-500.0,0.00013698,2]
[342024928,1731367838730,-500.0,0.00013698,2]
[342024929,1731367838739,-500.0,0.00013698,2]
[342024930,1731367838749,-500.0,0.00013698,2]
[342024931,1731367838758,-500.0,0.00013698,2]
[342024932,1731367838767,-500.0,0.00013698,2]
[342024933,1731367838776,-500.0,0.00013698,2]
[342024934,1731367838785,-422.81,0.00013698,2]
[342024935,1731367838794,-500.0,0.00013698,2]
[342024936,1731367838803,-550.15574324,0.00013698,2]
[342024937,1731367838813,-500.0,0.00013698,2]
[342024938,1731367838822,-500.0,0.00013698,2]
[342024939,1731367838831,-500.0,0.00013698,2]
[342024940,1731367838840,-500.0,0.00013698,2]
[342024941,1731367838849,-625.0,0.00013698,2]
[342024942,1731367838859,-625.0,0.00013698,2]
[342024943,1731367838868,-625.0,0.00013698,2]
[342024944,1731367838877,-625.0,0.00013698,2]
[342024945,1731367838887,-500.0,0.00013698,2]
[342024946,1731367838896,-555.32311177,0.00013698,2]
[342024947,1731367838905,-424.14,0.00013698,2]
[342024948,1731367838914,-500.0,0.00013698,2]
[342024949,1731367838923,-326.12,0.00013698,2]
[342024950,1731367838932,-500.0,0.00013698,2]
[342024951,1731367838941,-500.0,0.00013698,2]
[342024952,1731367838950,-500.0,0.00013698,2]
[342024953,1731367838958,-214.56,0.00013698,2]
[342024954,1731367838967,-500.0,0.00013698,2]
[342024955,1731367838976,-542.88,0.00013698,2]
[342024956,1731367838988,-500.0,0.00013698,2]
[342024957,1731367838997,-500.0,0.00013698,2]
[342024958,1731367839006,-500.0,0.00013698,2]
[342024959,1731367839015,-500.0,0.00013698,2]
[342024960,1731367839025,-500.0,0.00013698,2]
[342024961,1731367839034,-500.0,0.00013698,2]
[342024962,1731367839043,-500.0,0.00013698,2]
[342024963,1731367839052,-500.0,0.00013698,2]
[342024964,1731367839065,-500.0,0.00013698,2]
[342024965,1731367839074,-500.0,0.00013698,2]
[342024966,1731367839083,-500.0,0.00013698,2]
[342024967,1731367839093,-500.0,0.00013698,2]
[342024968,1731367839102,-250.0,0.00013699,2]
[342024969,1731367839112,-150.0,0.00013699,2]
[342024970,1731367839121,-200.0,0.000137,2]
[342024971,1731367839131,-1888.01,0.00013746,2]
[342024972,1731367839140,-164.33035333,0.000138,2]
[342024973,1731367839150,-2965.22196683,0.00013862,2]
[342024974,1731367839159,-200.0,0.00013864,2]
[342024975,1731367839168,-10170.93842902,0.00013866,2]
[342024976,1731367839178,-4520.83822479,0.00013866,2]
[342024977,1731367839187,-10170.93842902,0.00013869,2]
[342024978,1731367839197,-10170.93842902,0.00013871,2]
[342024979,1731367839207,-4520.83822479,0.00013872,2]
[342024980,1731367839216,-4520.83822479,0.00013875,2]
[342024981,1731367839229,-10170.93842902,0.00013876,2]
[342024982,1731367839239,-2291.97324708,0.00013881,2]
[342024983,1731367839249,-4520.83822479,0.00013889,2]
[342024984,1731367839259,-10170.93842902,0.00013894,2]
[342024985,1731367839268,-10170.93842902,0.00013896,2]
[342024986,1731367839277,-359.8242,0.000139,2]
[342024987,1731367839286,-2465.8117,0.000139,2]
[342024988,1731367839296,-1302.63,0.000139,2]
[342024989,1731367839305,-4520.83822479,0.000139,2]
[342024990,1731367839314,-800.0,0.000139,5]
[342024991,1731367839324,-150.0,0.00013931,2]
[342024992,1731367839333,-500.0,0.00013973,2]
[342024993,1731367839342,-1376.1129,0.00013973,2]
[342024994,1731367839350,-310.53922716,0.0001399,2]
[342024995,1731367839359,-413.35230834,0.00013998,2]
[342024996,1731367839368,-1033.014,0.00013998,2]
[342024997,1731367839377,-255.0,0.00013999,2]
[342024998,1731367839386,-500.0,0.00013999,2]
[342024999,1731367839395,-500.0,0.00013999,2]
[342025000,1731367839404,-617.56482569,0.00013999,2]
[342025001,1731367839412,-500.0,0.00013999,2]
[342025002,1731367839422,-500.0,0.00013999,2]
[342025003,1731367839432,-500.0,0.00013999,2]
[342025004,1731367839442,-449.09777633,0.00013999,2]
[342025005,1731367839452,-500.0,0.00013999,2]
[342025006,1731367839462,-500.0,0.00013999,2]
[342025007,1731367839471,-500.0,0.00013999,2]
[342025008,1731367839483,-500.0,0.00013999,2]
[342025009,1731367839493,-500.0,0.00013999,2]
[342025010,1731367839503,-500.0,0.00013999,2]
[342025011,1731367839512,-500.0,0.00013999,2]
[342025012,1731367839522,-230.54986302,0.00013999,2]
[342025013,1731367839531,-500.0,0.00013999,2]
[342025014,1731367839541,-532.49,0.00013999,2]
[342025015,1731367839550,-368.91663722,0.00013999,2]
[342025016,1731367839559,-212.0926789,0.00013999,2]
[342025017,1731367839569,-459.67561444,0.00013999,2]
[342025018,1731367839578,-500.0,0.00013999,2]
[342025019,1731367839588,-500.0,0.00013999,2]
[342025020,1731367839598,-500.0,0.00013999,2]
[342025021,1731367839607,-500.0,0.00013999,2]
[342025022,1731367839617,-500.0,0.00013999,2]
[342025023,1731367839627,-528.13040387,0.00013999,2]
[342025025,1731367839637,-300.0,0.00013999,2]
[342025026,1731367839647,-930100.9083915,0.00014,2]
[342025027,1731367839661,-9760.75669685,0.00014,2]
[342025028,1731367839673,-15715.88422617,0.00014,2]
[342025029,1731367839688,-2965.1985,0.00014,2]
[342025030,1731367839700,-178989.65733086,0.00014,2]
[342025031,1731367839711,-5525.13298369,0.00014,2]
[342025032,1731367839731,-987.5331734,0.00014,2]
[342025037,1731367839769,-692025.31345921,0.00014,2]
[342025039,1731367839779,-344.0,0.00014051,2]
[342025041,1731367839789,-173.17,0.00014059,2]
[342025043,1731367839798,-2291.97324708,0.00014085,2]
[342025044,1731367839808,-455.0,0.000141,2]
[342025046,1731367839818,-1200.0,0.000141,5]
[342025048,1731367839827,-185.11,0.00014168,2]
[342025049,1731367839836,-1600.0,0.000142,5]
[342025050,1731367839846,-1888.01,0.00014249,2]
[342025051,1731367839855,-158.08342535,0.00014289,2]
[342025052,1731367839865,-2291.97324708,0.00014289,2]
[342025053,1731367839874,-308.505,0.00014295,2]
[342025054,1731367839883,-1922.0,0.00014295,2]
[342025055,1731367839893,-3744.0,0.00014295,2]
[342025056,1731367839902,-1258.0,0.00014295,2]
[342025057,1731367839912,-919.58,0.00014295,2]
[342025058,1731367839921,-436.952,0.00014295,2]
[342025059,1731367839931,-631.0,0.00014295,2]
[342025060,1731367839940,-563.0,0.00014295,2]
[342025061,1731367839950,-2000.0,0.000143,5]
[342025062,1731367839959,-1275.21,0.00014399,2]
[342025063,1731367839968,-1851.0899,0.00014399,2]
[342025064,1731367839979,-500.0,0.00014399,2]
[342025065,1731367839988,-400.0,0.000144,5]
[342025066,1731367839997,-310.53922716,0.00014489,2]
[342025067,1731367840006,-2291.97324708,0.00014492,2]
[342025068,1731367840015,-799.47038227,0.00014498,2]
[342025069,1731367840024,-337.99494,0.00014498,2]
[342025070,1731367840033,-628.69,0.00014498,2]
[342025071,1731367840042,-500.0,0.00014498,2]
[342025072,1731367840055,-323.60093579,0.00014498,2]
[342025073,1731367840064,-500.0,0.00014498,2]
[342025074,1731367840073,-500.0,0.00014498,2]
[342025075,1731367840082,-1371.42,0.00014498,2]
[342025076,1731367840093,-500.0,0.00014498,2]
[342025077,1731367840102,-255.79,0.00014498,2]
[342025078,1731367840111,-500.0,0.00014498,2]
[342025079,1731367840121,-500.0,0.00014498,2]
[342025080,1731367840131,-536.97,0.00014498,2]
[342025081,1731367840139,-500.0,0.00014498,2]
[342025082,1731367840149,-500.0,0.00014498,2]
[342025083,1731367840158,-500.0,0.00014498,2]
[342025084,1731367840167,-500.0,0.00014498,2]
[342025085,1731367840177,-500.0,0.00014498,2]
[342025086,1731367840185,-500.0,0.00014498,2]
[342025087,1731367840195,-500.0,0.00014498,2]
[342025088,1731367840205,-500.0,0.00014498,2]
[342025089,1731367840216,-500.0,0.00014498,2]
[342025091,1731367840226,-500.0,0.00014498,2]
[342025092,1731367840241,-500.0,0.00014498,2]
[342025093,1731367840253,-500.0,0.00014498,2]
[342025094,1731367840262,-500.0,0.00014498,2]
[342025095,1731367840272,-165.12277607,0.00014498,2]
[342025096,1731367840282,-500.0,0.00014498,2]
[342025097,1731367840291,-500.0,0.00014498,2]
[342025098,1731367840301,-500.0,0.00014498,2]
[342025099,1731367840310,-500.0,0.00014498,2]
[342025100,1731367840319,-516.2,0.00014498,2]
[342025101,1731367840328,-500.0,0.00014498,2]